fUSD/lending_fUSD_20250225
["ID","MTS","AMOUNT","RATE_DAILY","PERIOD"]
[354392607,1740468801142,-1493.71,0.00059452,120]
[354392608,1740468801159,-1352.07,0.00059452,120]
[354392609,1740468801175,-2909.1,0.00059452,120]
[354392610,1740468801191,-1667.75,0.00059452,120]
[354392611,1740468801207,-1519.71,0.00059452,120]
[354392612,1740468801223,-4349.64,0.00059452,120]
[354392613,1740468801238,-752.34,0.00059452,120]
[354392614,1740468801254,-864.91,0.00059452,120]
[354392615,1740468801268,-1290.66,0.00059452,120]
[354392616,1740468801282,-910.81,0.00059452,5]
[354392617,1740468801298,-2901.27,0.00059452,120]
[354392618,1740468801313,-1857.67,0.00059452,120]
[354392619,1740468801330,-500.0,0.00059452,120]
[354392620,1740468801346,-2986.93,0.00059452,120]
[354392621,1740468801360,-2864.49,0.00059452,120]
[354392622,1740468801374,-2305.88,0.00059452,120]
[354392623,1740468801391,-2121.17,0.00059452,120]
[354392624,1740468801405,-538.64,0.00059452,120]
[354392625,1740468801420,-1752.42,0.00059452,120]
[354392626,1740468801440,-1452.1,0.00059452,120]
[354392627,1740468801454,-1822.96,0.00059452,120]
[354392628,1740468801468,-2477.45,0.00059452,120]
[354392629,1740468801482,-1851.24,0.00059452,120]
[354392630,1740468801496,-607.87,0.00059452,120]
[354392631,1740468801509,-2265.65,0.00059452,120]
[354392632,1740468801523,-3192.11,0.00059452,120]
[354392633,1740468801537,-3707.86,0.00059452,120]
[354392634,1740468801551,-1530.35,0.00059452,120]
[354392635,1740468801565,-1400.72,0.00059452,120]
[354392636,1740468801579,-813.46,0.00059452,120]
[354392637,1740468802126,-1028.29,0.00059452,120]
[354392638,1740468802159,-1470.7,0.00059452,120]
[354392639,1740468802171,-2337.12,0.00059452,120]
[354392640,1740468802183,-3975.46,0.00059452,120]
[354392641,1740468802194,-3333.6,0.00059452,120]
[354392642,1740468802205,-5873.49,0.00059452,120]
[354392643,1740468802216,-1036.75,0.00059452,120]
[354392644,1740468802230,-640.5,0.00059452,120]
[354392645,1740468802241,-562.09,0.00059452,120]
[354392646,1740468802252,-2745.61,0.00059452,120]
[354392647,1740468802264,-707.46,0.00059452,120]
[354392648,1740468802275,-4540.04,0.00059452,120]
[354392649,1740468802287,-1113.18,0.00059452,120]
[354392650,1740468802298,-613.18,0.00059452,120]
[354392651,1740468802308,-3052.04,0.00059452,120]
[354392652,1740468802319,-2703.16,0.00059452,120]
[354392653,1740468802331,-522.41,0.00059452,120]
[354392654,1740468802342,-551.64,0.00059452,120]
[354392655,1740468802353,-1552.51,0.00059452,120]
[354392656,1740468802365,-2971.45,0.00059452,90]
[354392657,1740468802376,-1701.44,0.00059452,120]
[354392658,1740468802390,-553.8,0.00059452,120]
[354392659,1740468802401,-1833.0,0.00059452,120]
[354392660,1740468802412,-2581.17,0.00059452,120]
[354392661,1740468802423,-500.0,0.00059452,120]
[354392662,1740468802434,-522.17,0.00059452,120]
[354392663,1740468802445,-3435.08,0.00059452,120]
[354392664,1740468802456,-857.98,0.00059452,120]
[354392665,1740468802467,-3140.0,0.00059452,120]
[354392666,1740468802477,-3227.53,0.00059452,120]
[354392667,1740468802487,-500.0,0.00059452,120]
[354392668,1740468802498,-775.19,0.00059452,120]
[354392669,1740468802509,-500.0,0.00059452,120]
[354392670,1740468802519,-872.89,0.00059452,120]
[354392671,1740468802531,-2538.08,0.00059452,120]
[354392672,1740468802542,-2940.18,0.00059452,120]
[354392673,1740468802553,-3583.88,0.00059452,120]
[354392674,1740468802564,-2559.65,0.00059452,120]
[354392675,1740468802574,-1118.81,0.00059452,120]
[354392676,1740468802585,-688.16,0.00059452,120]
[354392677,1740468802596,-3329.23,0.00059452,120]
[354392678,1740468802607,-3487.12,0.00059452,120]
[354392679,1740468802618,-1907.44,0.00059452,120]
[354392680,1740468802631,-568.38,0.00059452,120]
[354392681,1740468802643,-2138.38,0.00059452,120]
[354392682,1740468802654,-1469.89,0.00059452,120]
[354392683,1740468802664,-880.12,0.00059452,120]
[354392684,1740468802674,-1941.03,0.00059452,120]
[354392685,1740468802684,-998.34,0.00059452,120]
[354392686,1740468802694,-1969.46,0.00059452,120]
[354392687,1740468802704,-2020.04,0.00059452,120]
[354392688,1740468802713,-1704.77,0.00059452,120]
[354392689,1740468802723,-500.0,0.00059452,120]
[354392690,1740468802733,-3000.0,0.00059452,120]
[354392691,1740468802743,-1814.1,0.00059452,120]
[354392692,1740468802753,-3162.2,0.00059452,120]
[354392693,1740468802762,-561.29,0.00059452,120]
[354392694,1740468802772,-4214.34,0.00059452,120]
[354392695,1740468802782,-1107.87,0.00059452,120]
[354392696,1740468802791,-1793.36,0.00059452,120]
[354392697,1740468802801,-1453.67,0.00059452,30]
[354392698,1740468802811,-558.43,0.00059452,120]
[354392699,1740468802820,-1291.79,0.00059452,120]
[354392700,1740468802830,-2203.33,0.00059452,120]
[354392701,1740468802840,-2186.37,0.00059452,120]
[354392702,1740468802850,-2099.71,0.00059452,120]
[354392703,1740468802860,-1541.65,0.00059452,120]
[354392704,1740468802870,-500.0,0.00059452,2]
[354392705,1740468802881,-211.13481977,0.00059452,120]
[354392706,1740468802891,-2864.64,0.00059452,120]
[354392707,1740468802900,-1803.36,0.00059452,120]
[354392708,1740468802910,-1506.59,0.00059452,120]
[354392709,1740468802919,-1568.57,0.00059452,120]
[354392710,1740468802928,-980.59,0.00059452,120]
[354392711,1740468802938,-1792.49,0.00059452,120]
[354392712,1740468802948,-250.06070361,0.00059452,120]
[354392713,1740468802957,-1620.72,0.00059452,120]
[354392714,1740468802967,-500.0,0.00059452,120]
[354392715,1740468802976,-659.49,0.00059452,120]
[354392716,1740468802986,-500.0,0.00059452,120]
[354392717,1740468802996,-150.979023,0.00059452,120]
[354392718,1740468803005,-3340.49,0.00059452,120]
[354392719,1740468803015,-849.91,0.00059452,120]
[354392720,1740468803024,-668.51,0.00059452,120]
[354392721,1740468803034,-680.52,0.00059452,120]
[354392722,1740468803044,-1680.11,0.00059452,120]
[354392723,1740468803053,-209.99852752,0.00059452,120]
[354392724,1740468803063,-2006.24,0.00059452,120]
[354392725,1740468803072,-151.0,0.00059562,120]
[354392726,1740468803081,-563.24,0.00059726,120]
[354392727,1740468803091,-580.45,0.00059726,120]
[354392728,1740468803100,-156.61543,0.00059726,120]
[354392729,1740468803113,-167.182594,0.00059726,120]
[354392730,1740468803123,-406.014874,0.00059726,120]
[354392731,1740468803136,-166.734294,0.00059726,120]
[354392732,1740468803146,-158.663893,0.00059726,120]
[354392733,1740468803156,-554.357489,0.00059726,120]
[354392734,1740468803166,-500.0,0.00059726,120]
[354392735,1740468803177,-500.0,0.00059726,120]
[354392736,1740468803187,-521.68,0.00059726,120]
[354392737,1740468803197,-699.56,0.00059726,120]
[354392738,1740468803208,-500.0,0.00059726,120]
[354392739,1740468803217,-500.0,0.00059726,120]
[354392740,1740468803227,-687.3,0.00059726,120]
[354392741,1740468803237,-500.0,0.00059726,120]
[354392742,1740468803247,-1291.42,0.00059726,120]
[354392743,1740468803258,-850.45,0.00059726,120]
[354392744,1740468803268,-836.92,0.00059726,120]
[354392745,1740468803278,-925.53,0.00059726,120]
[354392746,1740468803288,-525.48,0.00059726,120]
[354392747,1740468803298,-1017.7,0.00059726,120]
[354392748,1740468803308,-620.4,0.00059726,120]
[354392749,1740468803319,-637.38,0.00059726,120]
[354392750,1740468803329,-822.2,0.00059726,120]
[354392751,1740468803339,-543.16,0.00059726,120]
[354392752,1740468803350,-1571.07,0.00059726,120]
[354392753,1740468803360,-848.24,0.00059726,120]
[354392754,1740468803370,-943.15,0.00059726,120]
[354392755,1740468803381,-1168.63,0.00059726,120]
[354392756,1740468803393,-500.0,0.00059726,120]
[354392757,1740468803404,-517.51,0.00059726,120]
[354392758,1740468803414,-951.32,0.00059726,120]
[354392759,1740468803425,-2000.0,0.00059726,30]
[354392760,1740468803435,-777.26,0.00059726,120]
[354392761,1740468803446,-560.94,0.00059726,120]
[354392762,1740468803456,-404.43,0.00059726,7]
[354392763,1740468803467,-1128.12,0.00059726,120]
[354392764,1740468803477,-610.79,0.00059726,120]
[354392765,1740468803487,-630.83,0.00059726,120]
[354392766,1740468803497,-500.0,0.00059726,120]
[354392767,1740468803507,-500.0,0.00059726,120]
[354392768,1740468803518,-351.04148077,0.00059726,120]
[354392769,1740468803528,-641.8,0.00059726,120]
[354392770,1740468803539,-500.0,0.00059726,120]
[354392771,1740468803550,-1736.97,0.00059726,120]
[354392772,1740468803560,-500.0,0.00059726,120]
[354392773,1740468803570,-551.92,0.00059726,120]
[354392774,1740468803580,-500.0,0.00059726,120]
[354392775,1740468803590,-362.2922478,0.00059726,120]
[354392776,1740468803600,-829.97,0.00059726,120]
[354392777,1740468803610,-1884.67,0.00059726,120]
[354392778,1740468803620,-1959.02,0.00059726,120]
[354392779,1740468803631,-687.65,0.00059726,120]
[354392780,1740468803641,-1049.16,0.00059726,120]
[354392781,1740468803651,-500.0,0.00059726,120]
[354392782,1740468803662,-500.0,0.00059726,120]
[354392783,1740468803672,-910.65,0.00059726,120]
[354392784,1740468803682,-500.0,0.00059726,120]
[354392785,1740468803693,-500.0,0.00059726,120]
[354392786,1740468803703,-1220.8,0.00059726,120]
[354392787,1740468803712,-522.31,0.00059726,120]
[354392788,1740468803723,-1188.98,0.00059726,120]
[354392789,1740468803733,-526.28,0.00059726,120]
[354392790,1740468803742,-1040.34,0.00059726,120]
[354392791,1740468803752,-500.0,0.00059726,120]
[354392792,1740468803762,-724.24,0.00059726,120]
[354392793,1740468803772,-1422.51,0.00059726,120]
[354392794,1740468803782,-211.844646,0.00059726,120]
[354392795,1740468803792,-1615.65,0.00059726,120]
[354392796,1740468803801,-992.42,0.00059726,20]
[354392797,1740468803812,-901.44,0.00059726,120]
[354392798,1740468803821,-816.88,0.00059726,120]
[354392799,1740468803831,-500.0,0.00059726,120]
[354392800,1740468803842,-671.92,0.00059726,120]
[354392801,1740468803852,-955.28,0.00059726,120]
[354392802,1740468803862,-1525.72,0.00059726,120]
[354392803,1740468803872,-1437.76,0.00059726,120]
[354392804,1740468803884,-1132.0,0.00059726,120]
[354392805,1740468803893,-1768.38,0.00059726,120]
[354392806,1740468803903,-872.14,0.00059726,120]
[354392807,1740468803913,-1405.94,0.00059726,120]
[354392808,1740468803923,-745.77,0.00059726,120]
[354392809,1740468803934,-1000.0,0.00059726,120]
[354392810,1740468803944,-500.0,0.00059726,120]
[354392811,1740468803954,-820.25,0.00059726,120]
[354392812,1740468803964,-778.18,0.00059726,120]
[354392813,1740468803974,-385.68765392,0.00059726,120]
[354392814,1740468803984,-500.0,0.00059726,120]
[354392815,1740468803994,-618.03,0.00059726,120]
[354392816,1740468804004,-538.57,0.00059726,120]
[354392817,1740468804014,-659.87,0.00059726,120]
[354392818,1740468804025,-542.24,0.00059726,120]
[354392819,1740468804035,-1379.17,0.00059726,120]
[354392820,1740468804045,-813.45,0.00059726,120]
[354392821,1740468804055,-1790.29,0.00059726,120]
[354392822,1740468804064,-817.76,0.00059726,120]
[354392823,1740468804075,-1159.57,0.00059726,120]
[354392824,1740468804084,-500.0,0.00059726,120]
[354392825,1740468804094,-180.99977253,0.00059726,120]
[354392826,1740468804104,-1035.42,0.00059726,120]
[354392827,1740468804118,-500.0,0.00059726,120]
[354392828,1740468804130,-1067.5,0.00059726,120]
[354392829,1740468804140,-911.5,0.00059726,120]
[354392830,1740468804151,-782.71,0.00059726,120]
[354392831,1740468804161,-692.81,0.00059726,120]
[354392832,1740468804172,-1417.28,0.00059726,120]
[354392833,1740468804181,-4827.95,0.00059726,120]
[354392834,1740468804191,-907.1,0.00059726,120]
[354392835,1740468804201,-1025.54,0.00059726,120]
[354392836,1740468804211,-972.52,0.00059726,120]
[354392837,1740468804220,-1147.6,0.00059726,120]
[354392838,1740468804230,-954.71,0.00059726,120]
[354392839,1740468804240,-508.53,0.00059726,120]
[354392840,1740468804251,-500.0,0.00059726,120]
[354392841,1740468804260,-672.91,0.00059726,120]
[354392842,1740468804270,-927.58,0.00059726,120]
[354392843,1740468804279,-1526.64,0.00059726,120]
[354392844,1740468804289,-500.0,0.00059726,120]
[354392845,1740468804299,-1242.39,0.00059726,120]
[354392846,1740468804308,-1600.52,0.00059726,120]
[354392847,1740468804318,-871.61,0.00059726,120]
[354392848,1740468804329,-549.43,0.00059726,120]
[354392849,1740468804338,-1142.54,0.00059726,120]
[354392850,1740468804349,-552.98,0.00059726,120]
[354392851,1740468804359,-1401.97,0.00059726,120]
[354392852,1740468804368,-1245.93,0.00059726,120]
[354392853,1740468804378,-1200.36,0.00059726,120]
[354392854,1740468804389,-500.0,0.00059726,120]
[354392855,1740468804399,-504.05,0.00059726,120]
[354392856,1740468804409,-971.46,0.00059726,120]
[354392857,1740468804419,-500.0,0.00059726,120]
[354392858,1740468804430,-599.74,0.00059726,120]
[354392859,1740468804441,-515.75,0.00059726,120]
[354392860,1740468804451,-1301.53,0.00059726,120]
[354392861,1740468804461,-500.0,0.00059726,120]
[354392862,1740468804470,-1377.93,0.00059726,120]
[354392863,1740468804480,-623.61,0.00059726,120]
[354392864,1740468804598,-519.39,0.00059726,120]
[354392865,1740468804608,-1303.38,0.00059726,120]
[354392866,1740468804618,-500.0,0.00059726,120]
[354392867,1740468804628,-500.0,0.00059726,120]
[354392868,1740468804639,-585.47,0.00059726,120]
[354392869,1740468804649,-1349.4,0.00059726,120]
[354392870,1740468804659,-552.97,0.00059726,120]
[354392871,1740468804669,-741.84,0.00059726,120]
[354392872,1740468804679,-700.58,0.00059726,2]
[354392873,1740468804688,-2351.09,0.00059726,2]
[354392874,1740468804698,-994.98,0.00059726,30]
[354392875,1740468804707,-715.33,0.00059726,120]
[354392876,1740468804717,-1439.89,0.00059726,120]
[354392877,1740468804727,-943.25,0.00059726,120]
[354392878,1740468804736,-381.13135676,0.00059726,120]
[354392879,1740468804746,-657.52,0.00059726,120]
[354392880,1740468804756,-523.79,0.00059726,120]
[354392881,1740468804766,-321.30389076,0.00059726,120]
[354392882,1740468804775,-1664.27,0.00059726,120]
[354392883,1740468804785,-943.64,0.00059726,120]
[354392884,1740468804794,-516.4,0.00059726,120]
[354392885,1740468804803,-712.11,0.00059726,120]
[354392886,1740468804813,-500.0,0.00059726,120]
[354392887,1740468804822,-888.35,0.00059726,120]
[354392888,1740468804831,-500.0,0.00059726,120]
[354392889,1740468804841,-522.22,0.00059726,120]
[354392890,1740468804850,-1032.87,0.00059726,120]
[354392891,1740468804860,-1438.9,0.00059726,120]
[354392892,1740468804870,-570.8,0.00059726,120]
[354392893,1740468804882,-815.66,0.00059726,120]
[354392894,1740468804892,-500.0,0.00059726,120]
[354392895,1740468804901,-1275.45,0.00059726,120]
[354392896,1740468804910,-3980.64,0.00059726,120]
[354392897,1740468804919,-315.40345634,0.00059726,120]
[354392898,1740468804928,-1206.75,0.00059726,120]
[354392899,1740468804938,-500.0,0.00059726,120]
[354392900,1740468804948,-1130.49,0.00059726,120]
[354392901,1740468804958,-1535.83,0.00059726,120]
[354392902,1740468804968,-1768.01,0.00059726,120]
[354392903,1740468804978,-664.86,0.00059726,120]
[354392904,1740468804988,-696.61,0.00059726,120]
[354392905,1740468804998,-1200.87,0.00059726,120]
[354392906,1740468805007,-1522.97,0.00059726,120]
[354392907,1740468805017,-1393.05,0.00059726,120]
[354392908,1740468805027,-894.01,0.00059726,120]
[354392909,1740468805037,-1886.6,0.00059726,120]
[354392910,1740468805047,-1184.76,0.00059726,120]
[354392911,1740468805057,-1319.72,0.00059726,120]
[354392912,1740468805067,-986.38,0.00059726,120]
[354392913,1740468805077,-2022.2,0.00059726,120]
[354392914,1740468805087,-1099.29,0.00059726,120]
[354392915,1740468805097,-512.51,0.00059726,120]
[354392916,1740468805107,-517.98,0.00059726,120]
[354392917,1740468805120,-1030.18,0.00059726,120]
[354392918,1740468805132,-1444.43,0.00059726,120]
[354392919,1740468805142,-971.18,0.00059726,120]
[354392920,1740468805153,-1142.3,0.00059726,120]
[354392921,1740468805164,-1194.04,0.00059726,120]
[354392922,1740468805174,-1748.82,0.00059726,120]
[354392923,1740468805185,-679.54,0.00059726,120]
[354392924,1740468805195,-1309.17,0.00059726,120]
[354392925,1740468805206,-500.0,0.00059726,120]
[354392926,1740468805215,-587.74,0.00059726,120]
[354392927,1740468805225,-778.7,0.00059726,120]
[354392928,1740468805235,-730.67,0.00059726,120]
[354392929,1740468805244,-733.26,0.00059726,120]
[354392930,1740468805254,-1016.76,0.00059726,120]
[354392931,1740468805265,-598.78,0.00059726,120]
[354392932,1740468805274,-789.0,0.00059726,120]
[354392933,1740468805283,-343.780273,0.00059726,120]
[354392934,1740468805294,-1145.46,0.00059726,120]
[354392935,1740468805303,-4362.55,0.00059726,120]
[354392936,1740468805313,-631.53,0.00059726,120]
[354392937,1740468805322,-969.91,0.00059726,120]
[354392938,1740468805332,-759.14,0.00059726,120]
[354392939,1740468805342,-536.67833498,0.00059726,120]
[354392940,1740468805352,-3017.39,0.00059726,120]
[354392941,1740468805362,-2220.86,0.00059726,120]
[354392942,1740468805372,-318.751745,0.00059726,120]
[354392943,1740468805383,-1553.03,0.00059726,120]
[354392944,1740468805392,-722.9,0.00059726,120]
[354392945,1740468805402,-910.26,0.00059726,120]
[354392946,1740468805412,-856.37,0.00059726,120]
[354392947,1740468805422,-1830.19,0.00059726,120]
[354392948,1740468805431,-887.73,0.00059726,120]
[354392949,1740468805441,-500.0,0.00059726,120]
[354392950,1740468805450,-1715.31,0.00059726,120]
[354392951,1740468805460,-686.54,0.00059726,120]
[354392952,1740468805469,-2424.1,0.00059726,120]
[354392953,1740468805478,-1521.55,0.00059726,120]
[354392954,1740468805488,-2919.48,0.00059726,120]
[354392955,1740468805497,-823.47,0.00059726,120]
[354392956,1740468805507,-1738.48,0.00059726,120]
[354392957,1740468805516,-915.34,0.00059726,120]
[354392958,1740468805526,-2711.99,0.00059726,120]
[354392959,1740468805536,-576.99,0.00059726,120]
[354392960,1740468805545,-2110.84,0.00059726,120]
[354392961,1740468805555,-2315.41,0.00059726,120]
[354392962,1740468805564,-3875.43,0.00059726,7]
[354392963,1740468805574,-637.74,0.00059726,120]
[354392964,1740468805583,-1035.71,0.00059726,120]
[354392965,1740468805593,-750.25,0.00059726,120]
[354392966,1740468805602,-3264.88,0.00059726,120]
[354392967,1740468805612,-2938.93,0.00059726,120]
[354392968,1740468805621,-1210.86,0.00059726,120]
[354392969,1740468805632,-534.95,0.00059726,120]
[354392970,1740468805642,-2458.44,0.00059726,120]
[354392971,1740468805651,-703.65,0.00059726,120]
[354392972,1740468805661,-1556.62,0.00059726,120]
[354392973,1740468805670,-500.0,0.00059726,120]
[354392974,1740468805680,-2761.69,0.00059726,120]
[354392975,1740468805689,-585.51,0.00059726,120]
[354392976,1740468805699,-2649.21,0.00059726,120]
[354392977,1740468805708,-1981.89,0.00059726,120]
[354392978,1740468805719,-689.83,0.00059726,120]
[354392979,1740468805729,-2553.02,0.00059726,120]
[354392980,1740468805739,-1493.71,0.00059726,120]
[354392981,1740468805749,-1352.07,0.00059726,120]
[354392982,1740468805760,-2909.1,0.00059726,120]
[354392983,1740468805770,-1667.75,0.00059726,120]
[354392984,1740468805780,-3211.4,0.00059726,120]
[354392985,1740468805790,-1519.71,0.00059726,120]
[354392986,1740468805800,-4349.64,0.00059726,120]
[354392987,1740468805810,-752.34,0.00059726,120]
[354392988,1740468805820,-864.91,0.00059726,120]
[354392989,1740468805829,-1290.66,0.00059726,120]
[354392990,1740468805839,-910.81,0.00059726,5]
[354392991,1740468805849,-2901.27,0.00059726,120]
[354392992,1740468805859,-1857.67,0.00059726,120]
[354392993,1740468805868,-500.0,0.00059726,120]
[354392994,1740468805878,-2986.93,0.00059726,120]
[354392995,1740468805890,-2864.49,0.00059726,120]
[354392996,1740468805900,-2305.88,0.00059726,120]
[354392997,1740468805909,-2121.17,0.00059726,120]
[354392998,1740468805919,-538.64,0.00059726,120]
[354392999,1740468805929,-1752.42,0.00059726,120]
[354393000,1740468805938,-1452.1,0.00059726,120]
[354393001,1740468805948,-1822.96,0.00059726,120]
[354393002,1740468805958,-2477.45,0.00059726,120]
[354393003,1740468805967,-1851.24,0.00059726,120]
[354393004,1740468805978,-607.87,0.00059726,120]
[354393005,1740468805987,-2265.65,0.00059726,120]
[354393006,1740468805997,-3192.11,0.00059726,120]
[354393007,1740468806006,-3707.86,0.00059726,120]
[354393008,1740468806016,-1530.35,0.00059726,120]
[354393009,1740468806025,-1400.72,0.00059726,120]
[354393010,1740468806035,-813.46,0.00059726,120]
[354393011,1740468806044,-1028.29,0.00059726,120]
[354393012,1740468806053,-1470.7,0.00059726,120]
[354393013,1740468806063,-2337.12,0.00059726,120]
[354393014,1740468806072,-3975.46,0.00059726,120]
[354393015,1740468806081,-3333.6,0.00059726,120]
[354393016,1740468806091,-5873.49,0.00059726,120]
[354393017,1740468806100,-1036.75,0.00059726,120]
[354393018,1740468806111,-640.5,0.00059726,120]
[354393019,1740468806124,-562.09,0.00059726,120]
[354393020,1740468806134,-2745.61,0.00059726,120]
[354393021,1740468806143,-707.46,0.00059726,120]
[354393022,1740468806155,-4540.04,0.00059726,120]
[354393023,1740468806164,-1113.18,0.00059726,120]
[354393024,1740468806173,-613.18,0.00059726,120]
[354393025,1740468806183,-3052.04,0.00059726,120]
[354393026,1740468806192,-2703.16,0.00059726,120]
[354393027,1740468806201,-522.41,0.00059726,120]
[354393028,1740468806210,-551.64,0.00059726,120]
[354393029,1740468806220,-1552.51,0.00059726,120]
[354393030,1740468806229,-2971.45,0.00059726,90]
[354393031,1740468806239,-1701.44,0.00059726,120]
[354393032,1740468806248,-553.8,0.00059726,120]
[354393033,1740468806259,-1833.0,0.00059726,120]
[354393034,1740468806268,-2581.17,0.00059726,120]
[354393035,1740468806278,-500.0,0.00059726,120]
[354393036,1740468806288,-522.17,0.00059726,120]
[354393037,1740468806297,-3435.08,0.00059726,120]
[354393038,1740468806307,-857.98,0.00059726,120]
[354393039,1740468806316,-3140.0,0.00059726,120]
[354393040,1740468806326,-3227.53,0.00059726,120]
[354393041,1740468806335,-500.0,0.00059726,120]
[354393042,1740468806344,-775.19,0.00059726,120]
[354393043,1740468806353,-500.0,0.00059726,120]
[354393044,1740468806363,-872.89,0.00059726,120]
[354393045,1740468806372,-2538.08,0.00059726,120]
[354393046,1740468806385,-2940.18,0.00059726,120]
[354393047,1740468806395,-3583.88,0.00059726,120]
[354393048,1740468806404,-2559.65,0.00059726,120]
[354393049,1740468806413,-1118.81,0.00059726,120]
[354393050,1740468806423,-688.16,0.00059726,120]
[354393051,1740468806432,-3329.23,0.00059726,120]
[354393052,1740468806443,-1907.44,0.00059726,120]
[354393053,1740468806452,-3487.12,0.00059726,120]
[354393054,1740468806462,-568.38,0.00059726,120]
[354393055,1740468806471,-2138.38,0.00059726,120]
[354393056,1740468806480,-1469.89,0.00059726,120]
[354393057,1740468806489,-880.12,0.00059726,120]
[354393058,1740468806499,-1941.03,0.00059726,120]
[354393059,1740468806508,-998.34,0.00059726,120]
[354393060,1740468806517,-1969.46,0.00059726,120]
[354393061,1740468806527,-2020.04,0.00059726,120]
[354393062,1740468806536,-1704.77,0.00059726,120]
[354393063,1740468806545,-421.68986208,0.00059726,120]
[354393064,1740468806555,-3000.0,0.00059726,120]
[354393065,1740468806564,-1814.1,0.00059726,120]
[354393066,1740468806574,-3162.2,0.00059726,120]
[354393067,1740468806583,-561.29,0.00059726,120]
[354393068,1740468806592,-4214.34,0.00059726,120]
[354393069,1740468806601,-1107.87,0.00059726,120]
[354393070,1740468806610,-1793.36,0.00059726,120]
[354393071,1740468806619,-1453.67,0.00059726,30]
[354393072,1740468806628,-558.43,0.00059726,120]
[354393073,1740468806640,-1291.79,0.00059726,120]
[354393074,1740468806650,-2203.33,0.00059726,120]
[354393075,1740468806659,-2186.37,0.00059726,120]
[354393076,1740468806669,-2099.71,0.00059726,120]
[354393077,1740468806678,-1541.65,0.00059726,120]
[354393078,1740468806688,-506.27625016,0.00059726,2]
[354393079,1740468806697,-2864.64,0.00059726,120]
[354393080,1740468806706,-1803.36,0.00059726,120]
[354393081,1740468806715,-1506.59,0.00059726,120]
[354393082,1740468806724,-1568.57,0.00059726,120]
[354393083,1740468806734,-980.59,0.00059726,120]
[354393084,1740468806743,-1792.49,0.00059726,120]
[354393085,1740468806752,-1620.72,0.00059726,120]
[354393086,1740468806762,-500.0,0.00059726,120]
[354393087,1740468806771,-659.49,0.00059726,120]
[354393088,1740468806780,-500.0,0.00059726,120]
[354393089,1740468806791,-3340.49,0.00059726,120]
[354393090,1740468806800,-150.979023,0.00059726,120]
[354393091,1740468806809,-849.91,0.00059726,120]
[354393092,1740468806819,-668.51,0.00059726,120]
[354393093,1740468806828,-680.52,0.00059726,120]
[354393094,1740468806838,-1680.11,0.00059726,120]
[354393095,1740468806847,-2006.24,0.00059726,120]
[354393096,1740468806857,-439.49,0.00059726,30]
[354393097,1740468806866,-987.7,0.00059726,30]
[354393098,1740468806875,-987.7,0.00059726,30]
[354393099,1740468806888,-987.7,0.00059726,30]
[354393100,1740468806898,-987.7,0.00059726,30]
[354393101,1740468806908,-1000.0,0.000598,120]
[354393102,1740468806918,-365.03,0.00059824,2]
[354393103,1740468806928,-10000.0,0.0005987,30]
[354393104,1740468806937,-5572.33301611,0.000599,120]
[354393105,1740468806947,-151.0,0.00059918,120]
[354393106,1740468806956,-563.24,0.00059999,120]